bitfinex/quotes_ETHUSD_20240711
["timestamp","ask_amount","ask_price","bid_price","bid_amount"]
[1720732016444,1.10903689,3122.7,3122.6,3.30382067]
[1720732018431,1.10903689,3122.7,3122.6,0.10138067]
[1720732018841,1.10903689,3122.7,3122.4,3.20258]
[1720732019029,2.76531035,3122.8,3122.6,0.10138583]
[1720732019326,1.10908742,3122.7,3122.5,0.10145457]
[1720732019631,1.10908742,3122.6,3122.5,3.20253]
[1720732019845,2.76531035,3122.8,3122.5,3.20253]
[1720732020134,1.1090714,3122.7,3122.5,3.20253]
[1720732020432,1.1090714,3122.6,3122.2,3.2028]
[1720732020757,1.1090714,3122.5,3122.2,3.2028]
[1720732021103,1.1090714,3122.4,3122.2,3.2028]
[1720732021422,1.1090714,3122.3,3122.2,3.2028]
[1720732021597,1.1090714,3122.6,3122.2,6.40559]
[1720732021801,1.1090714,3122.5,3122.2,6.40558]
[1720732022020,1.1090714,3122.6,3122.2,3.20279]
[1720732022324,1.1090714,3122.5,3122.2,3.20279]
[1720732022527,1.10915478,3122.4,3122.2,3.20279]
[1720732022732,1.10915478,3122.3,3122.2,3.20279]
[1720732022906,1.34230417,3122.7,3122.2,3.20279]
[1720732023124,1.10915455,3122.6,3122.2,3.20279]
[1720732023318,1.10915455,3122.5,3122.2,6.40559]
[1720732023518,1.10915455,3122.4,3122.2,6.40559]
[1720732023723,1.10915455,3122.3,3122.2,3.20279]
[1720732024738,1.10915455,3122.3,3122.0,6.40601]
[1720732024942,1.10915455,3122.2,3122.1,3.20296]
[1720732025347,1.10915455,3122.4,3122.1,3.20296]
[1720732025556,1.10917379,3122.3,3122.1,3.20296]
[1720732025853,1.10917821,3122.2,3122.1,3.20296]
[1720732026545,1.10917821,3122.2,3122.1,3.30469348]
[1720732029361,1.34230417,3122.5,3122.2,3.20283]
[1720732029529,1.10917231,3122.4,3122.2,3.20283]
[1720732029733,1.10917231,3122.3,3122.2,3.20283]
[1720732030156,1.10915694,3122.3,3122.2,3.20283]
[1720732033175,1.10917861,3122.3,3122.2,3.20283]
[1720732033332,2.45148204,3122.3,3122.2,3.20283]
[1720732033728,2.45148204,3122.3,3121.8,3.2032]
[1720732033729,2.45463824,3122.3,3121.8,3.2032]
[1720732033933,2.45463824,3122.3,3121.9,3.20317]
[1720732033934,1.3454614,3122.1,3121.9,3.20317]
[1720732034136,1.3454614,3122.1,3121.6,10.6834]
[1720732034137,1.10917684,3122.0,3121.6,10.6834]
[1720732034334,1.34564003,3121.9,3121.6,10.6834]
[1720732034638,2.45481687,3121.8,3121.6,10.6834]
[1720732034845,2.45481687,3121.7,3121.6,10.6834]
[1720732035045,2.45481687,3121.7,3121.6,7.48]
[1720732035368,2.4543129,3121.7,3121.6,7.48]
[1720732035565,1.10917684,3121.7,3121.6,7.48]
[1720732035741,2.45431054,3121.7,3121.6,7.48]
[1720732035939,1.10917684,3121.7,3121.6,7.48]
[1720732036239,1.10935561,3121.7,3121.6,12.072199]
[1720732036460,1.3451337,3121.9,3121.6,12.072199]
[1720732036665,1.10935348,3121.8,3121.6,12.072199]
[1720732036872,1.3451337,3121.9,3121.6,7.795679]
[1720732037138,1.10933707,3121.8,3121.6,6.40696]
[1720732037356,1.3451337,3121.9,3121.6,6.40696]
[1720732037665,1.10936212,3121.8,3121.6,6.40691]
[1720732037872,1.3451337,3121.9,3121.6,6.40691]
[1720732038048,1.10935521,3121.8,3121.6,6.40691]
[1720732038250,1.3451337,3121.9,3121.6,6.40691]
[1720732038456,1.1093575,3121.8,3121.6,6.40691]
[1720732038767,1.3451337,3121.9,3121.7,3.20338]
[1720732038972,1.10936125,3121.8,3121.7,3.20338]
[1720732039899,1.3451337,3122.0,3121.7,3.20338]
[1720732040188,1.10934165,3121.9,3121.7,3.20338]
[1720732040393,1.10934165,3121.8,3121.7,3.20338]
[1720732040704,1.1093559,3121.8,3121.7,3.20338]
[1720732041046,1.1093559,3121.8,3121.7,7.047441]
[1720732041270,1.34408367,3122.1,3121.9,3.20314]
[1720732041482,1.10930626,3122.0,3121.9,3.20314]
[1720732042262,1.10930626,3122.0,3121.8,3.20326]
[1720732042263,2.45338993,3122.0,3121.8,3.20326]
[1720732042464,1.10930626,3121.9,3121.8,3.20326]
[1720732043280,1.34408367,3122.0,3121.8,3.20326]
[1720732043486,1.10935881,3121.9,3121.8,3.20326]
[1720732043920,1.10936399,3121.9,3121.8,3.20326]
[1720732046151,1.34354946,3122.1,3121.8,3.20326]
[1720732046358,1.10933015,3122.0,3121.8,3.20326]
[1720732046580,1.10933015,3121.9,3121.8,3.20326]
[1720732046767,1.34354946,3122.1,3121.8,3.20326]
[1720732046969,2.45288048,3122.0,3121.8,3.20326]
[1720732047169,1.10933102,3121.9,3121.8,3.20326]
[1720732047370,1.10933102,3122.1,3121.8,3.20326]
[1720732047573,1.10933102,3122.0,3121.8,3.20326]
[1720732047758,1.10933102,3121.9,3121.8,3.20326]
[1720732050391,1.10930769,3121.9,3121.8,3.20326]
[1720732053897,1.34354946,3122.2,3121.8,3.20326]
[1720732054096,1.10927119,3122.1,3121.8,3.20326]
[1720732054405,1.10924458,3122.0,3121.8,3.20326]
[1720732054603,3.61374946,3122.3,3121.8,3.20326]
[1720732054604,1.10924458,3121.9,3121.8,3.20326]
[1720732054896,3.61374946,3122.3,3121.8,3.20326]
[1720732055069,1.1092361,3122.2,3121.8,3.20326]
[1720732055399,1.1092361,3122.1,3121.8,3.20326]
[1720732055570,1.1092361,3122.0,3121.8,3.20326]
[1720732055772,1.1092361,3122.1,3121.9,3.30508756]
[1720732056568,2.45278556,3122.1,3121.9,3.30508756]
[1720732056911,1.10929332,3122.0,3121.9,3.30508756]
[1720732057212,1.34354946,3122.1,3121.9,3.30508756]
[1720732057379,1.10929078,3122.0,3121.9,3.30508756]
[1720732057981,1.10929078,3122.0,3121.9,0.10191756]
[1720732058586,1.10929078,3122.0,3121.5,3.20352]
[1720732058587,3.7426748,3122.0,3121.5,3.20352]
[1720732058905,1.34412631,3121.8,3121.6,0.10210835]
[1720732059199,2.45341709,3121.7,3121.3,3.20373]
[1720732059421,1.67965057,3121.8,3121.3,6.40745]
[1720732059422,2.45349744,3121.6,3121.3,6.40745]
[1720732059575,1.10929078,3121.5,3121.3,3.20372]
[1720732060470,1.10929078,3121.5,3121.1,10.68392]
[1720732060703,2.45349744,3121.5,3121.1,10.68392]
[1720732060883,1.10929078,3121.4,3121.1,10.68392]
[1720732061407,1.10929078,3121.4,3121.1,13.88785]
[1720732061579,2.3983,3121.6,3121.1,13.88785]
[1720732061580,1.10929078,3121.5,3121.1,13.88785]
[1720732061912,1.10929078,3121.5,3121.1,10.68392]
[1720732062114,1.10929078,3121.5,3121.3,3.20376]
[1720732064009,1.34420666,3121.6,3121.3,3.20376]
[1720732064174,1.10949739,3121.4,3121.3,3.20376]
[1720732064701,1.10949749,3121.5,3121.3,3.20376]
[1720732067011,1.109493,3121.4,3121.3,3.20376]
[1720732067516,1.10949312,3121.4,3121.3,7.048288]
[1720732067698,1.34430929,3121.8,3121.5,3.20355]
[1720732067909,1.10937726,3121.7,3121.5,3.20355]
[1720732068232,1.34430929,3121.9,3121.5,3.20355]
[1720732068233,1.10937726,3121.6,3121.5,3.20355]
[1720732068388,1.10937726,3121.6,3121.3,3.844478]
[1720732068570,1.10937726,3121.5,3121.4,3.20368]
[1720732069002,1.10937726,3121.6,3121.4,3.20368]
[1720732070797,3.67650929,3121.7,3121.4,3.20368]
[1720732071129,1.10946369,3121.6,3121.4,3.20368]
[1720732071274,1.10946369,3121.5,3121.4,3.20368]
[1720732071478,1.10946369,3121.6,3121.4,3.20368]
[1720732071710,2.45377298,3121.6,3121.4,3.30600487]
[1720732071908,1.10946369,3121.5,3121.4,3.30600487]
[1720732072840,1.10946369,3121.5,3121.4,0.10232487]
[1720732073180,1.10946369,3121.5,3121.4,0.10234169]
[1720732073482,1.10946369,3121.5,3121.1,6.40786]
[1720732073684,1.10946369,3121.5,3121.4,0.10234169]
[1720732073901,1.10946369,3121.5,3121.1,3.20389]
[1720732074106,2.45377298,3121.5,3121.4,0.10234169]
[1720732074308,2.3322,3121.7,3121.2,3.20386]
[1720732074613,1.34469662,3121.5,3121.3,0.10241048]
[1720732074778,1.10950476,3121.4,3121.3,0.10241048]
[1720732075695,1.10951795,3121.4,3121.3,0.10241048]
[1720732076579,2.45426772,3121.4,3121.3,0.10241048]
[1720732076784,2.45426772,3121.4,3121.1,3.20397]
[1720732077113,1.34474977,3121.4,3121.2,0.10248448]
[1720732077317,1.10956268,3121.3,3121.2,0.10248448]
[1720732077681,1.10956151,3121.3,3121.2,0.10248448]
[1720732078008,2.45431128,3121.3,3121.2,0.10248448]
[1720732078186,1.10956151,3121.3,3121.2,0.10248448]
[1720732078387,2.45431128,3121.3,3121.2,0.10248448]
[1720732078586,2.45431128,3121.3,3121.2,3.30637448]
[1720732078840,1.10956151,3121.3,3121.2,3.95740893]
[1720732079142,1.34474977,3121.6,3121.3,3.20376]
[1720732079440,1.10943334,3121.5,3121.3,3.20376]
[1720732079636,1.34474977,3121.7,3121.4,0.10234818]
[1720732079820,1.10941311,3121.6,3121.5,3.20358]
[1720732080527,1.10941311,3121.6,3121.5,3.30585292]
[1720732080894,1.10938793,3121.6,3121.5,3.30585292]
[1720732082050,2.4541377,3121.6,3121.5,3.30585292]
[1720732082344,1.10938793,3121.6,3121.5,3.30585292]
[1720732083949,1.10939479,3121.6,3121.5,3.30585292]
[1720732084332,1.10939913,3121.6,3121.5,3.30585292]
[1720732084741,2.45474407,3121.6,3121.5,0.10227292]
[1720732085152,2.45481321,3121.6,3121.3,3.2037]
[1720732085462,1.10942812,3121.5,3121.4,3.30601488]
[1720732085674,1.10942812,3121.5,3121.4,8.88620488]
[1720732086028,1.34541408,3121.8,3121.6,3.20338]
[1720732086349,1.10936429,3121.7,3121.6,3.20338]
[1720732086722,1.34541408,3121.8,3121.7,3.20338]
[1720732086919,2.45479278,3121.8,3121.7,3.20338]
[1720732087139,1.34541408,3121.8,3121.7,3.30549076]
[1720732087350,2.45479352,3121.8,3121.7,3.30549076]
[1720732087551,2.45476203,3121.8,3121.7,3.30549076]
[1720732087768,1.10937944,3121.8,3121.7,3.30549076]
[1720732088072,2.45474813,3121.8,3121.7,3.30549076]
[1720732090080,2.45474813,3121.8,3121.7,0.10211076]
[1720732090245,2.3563,3122.1,3121.5,6.40711]
[1720732090447,1.34542378,3121.7,3121.5,6.40711]
[1720732090862,1.10940384,3121.6,3121.5,3.20353]
[1720732093034,1.10940384,3121.6,3121.5,7.293901]
[1720732093547,1.34542378,3121.9,3121.8,3.20328]
[1720732093869,1.10930079,3121.9,3121.8,3.20328]
[1720732094265,1.6818225,3122.0,3121.8,3.20328]
[1720732094438,2.45479969,3121.9,3121.8,3.20328]
[1720732094635,1.10932654,3121.9,3121.8,3.20328]
[1720732094836,3.0,3122.2,3121.8,3.20328]
[1720732095041,2.3886,3122.3,3121.8,3.20328]
[1720732095042,1.68186609,3122.0,3121.8,3.20328]
[1720732095239,2.79120566,3121.9,3121.8,3.20328]
[1720732096663,1.10933957,3121.9,3121.8,3.20328]
[1720732097048,1.68204731,3121.9,3121.8,3.20328]
[1720732097254,2.79140215,3121.9,3121.8,3.20328]
[1720732097455,1.10938032,3121.9,3121.8,3.20328]
[1720732097653,2.3886,3122.3,3121.8,3.20328]
[1720732097882,2.79145647,3121.9,3121.8,3.20328]
[1720732100483,2.79145647,3121.9,3121.6,3.20347]
[1720732100789,1.10937771,3121.8,3121.7,3.20338]
[1720732100987,2.79145647,3121.8,3121.7,3.20338]
[1720732101189,2.4546,3121.9,3121.7,3.20338]
[1720732101495,2.79164582,3121.8,3121.7,3.20338]
[1720732104561,1.10935901,3121.8,3121.7,3.20338]
[1720732104768,2.79215939,3121.8,3121.7,3.20338]
[1720732105153,1.68279198,3121.8,3121.7,3.20338]
[1720732105360,2.79215348,3121.8,3121.7,3.20338]
[1720732107066,2.79215348,3121.8,3121.5,3.20349]
[1720732107262,2.45562442,3121.7,3121.6,3.20348]
[1720732107582,1.10936046,3121.7,3121.6,3.20348]
[1720732108091,1.1093641,3121.7,3121.6,3.20348]
[1720732108547,2.45562468,3121.7,3121.6,3.20348]
[1720732108746,2.45562468,3121.7,3121.6,3.8762119]
[1720732111547,1.34626058,3121.7,3121.6,3.8762119]
[1720732111753,2.45561889,3121.7,3121.6,3.8762119]
[1720732112075,1.10935831,3121.7,3121.3,3.20374]
[1720732112279,4.31342937,3122.1,3121.3,3.20374]
[1720732112280,1.34636514,3121.5,3121.3,3.20374]
[1720732112463,1.10935831,3121.4,3121.3,3.20374]
[1720732112663,2.45572345,3121.4,3121.3,3.20374]
[1720732113666,2.45572345,3121.4,3121.1,3.20393]
[1720732113867,2.45572345,3121.3,3121.1,3.20393]
[1720732114070,1.10935831,3121.2,3121.1,3.20393]
[1720732114854,1.34636514,3121.3,3121.1,3.20393]
[1720732115067,1.10947651,3121.2,3121.1,3.20393]
[1720732115260,1.10948754,3121.2,3121.1,3.20393]
[1720732115453,1.10948895,3121.2,3121.1,3.20393]
[1720732116671,1.10948895,3121.2,3121.1,3.30642114]
[1720732117702,1.10950809,3121.2,3121.1,6.51035114]
[1720732118482,1.34646063,3121.3,3121.2,3.20389]
[1720732118783,1.10950415,3121.3,3121.2,3.20389]
[1720732118954,1.10950415,3121.3,3121.2,3.30631233]
[1720732121976,1.10949682,3121.3,3121.2,3.30631233]
[1720732122389,2.45595745,3121.3,3121.2,3.30631233]
[1720732125309,1.34646063,3121.3,3121.2,3.30631233]
[1720732125461,2.45595944,3121.3,3121.2,3.30631233]
[1720732125863,2.45596085,3121.3,3121.2,3.30631233]
[1720732128306,1.10949687,3121.3,3121.2,3.30631233]
[1720732128477,1.10949687,3121.3,3121.2,9.70232656]
[1720732128670,1.10949687,3121.3,3121.2,13.85421656]
[1720732128869,1.34646063,3121.4,3121.2,13.85421656]
[1720732128870,1.34610468,3121.7,3121.2,7.44643656]
[1720732129081,1.34610468,3121.8,3121.7,3.20338]
[1720732129280,1.10933056,3121.8,3121.7,3.20338]
[1720732129479,1.10933056,3121.8,3121.7,3.30548299]
[1720732130011,2.45541143,3121.8,3121.7,3.30548299]
[1720732130215,2.45541143,3121.8,3121.7,9.53665829]
[1720732130414,1.10933056,3121.8,3121.7,9.53665829]
[1720732131211,1.34608087,3122.0,3121.9,3.20317]
[1720732131417,2.45531551,3122.0,3121.9,3.20317]
[1720732131708,2.45531551,3122.0,3121.9,3.30511733]
[1720732132421,1.10928125,3122.0,3121.9,3.30511733]
[1720732133185,2.79149738,3122.0,3121.9,3.30511733]
[1720732133714,1.10928125,3122.0,3121.9,3.30511733]
[1720732134692,3.59988125,3122.0,3121.9,0.10194733]
[1720732135016,3.59988125,3122.0,3121.6,3.20347]
[1720732135204,2.4906,3122.0,3121.9,0.10187099]
[1720732135512,3.60002574,3122.0,3121.9,0.10187099]
[1720732135711,3.60002574,3122.0,3121.6,3.20347]
[1720732135900,1.3456776,3121.8,3121.6,3.93897]
[1720732136107,1.10935907,3121.7,3121.6,4.88697]
[1720732136406,1.10936418,3121.7,3121.6,4.88697]
[1720732138691,1.3456776,3121.8,3121.7,3.20338]
[1720732138917,2.45502267,3121.8,3121.7,3.20338]
[1720732139423,2.45493707,3121.8,3121.7,3.20338]
[1720732141896,2.45495278,3121.8,3121.7,3.20338]
[1720732142615,2.45495278,3121.8,3121.7,9.501701]
[1720732142830,1.1093535,3121.8,3121.7,9.501701]
[1720732142989,2.45495278,3121.8,3121.7,9.501701]
[1720732144420,1.1093535,3121.8,3121.7,9.501701]
[1720732145341,1.34559928,3121.9,3121.8,6.40656]
[1720732145646,1.34559928,3122.4,3122.3,6.40552]
[1720732145945,0.43711035,3122.8,3122.6,6.40488]
[1720732145946,1.34517381,3122.7,3122.6,6.40488]
[1720732146102,1.10905388,3122.7,3122.6,3.20244]
[1720732146302,2.45368197,3122.7,3122.6,3.20244]
[1720732146714,2.45368197,3122.7,3122.6,3.30038838]
[1720732147337,1.10905388,3122.7,3122.6,3.30038838]
[1720732147937,2.45368197,3122.7,3122.6,3.30038838]
[1720732148136,1.10905388,3122.7,3122.6,3.30038838]
[1720732148638,0.43711035,3122.8,3122.6,3.30038838]
[1720732148826,1.10903378,3122.7,3122.6,3.30038838]
[1720732149452,1.10905734,3122.7,3122.6,3.30032838]
[1720732150555,1.10907967,3122.7,3122.6,3.30032838]
[1720732150957,1.10907967,3122.7,3122.6,3.95062122]
[1720732151254,0.43711035,3122.8,3122.6,7.15302122]
[1720732151625,1.10906912,3122.7,3122.6,3.30032838]
[1720732152049,0.43711035,3122.8,3122.6,6.50271838]
[1720732152453,0.43711035,3122.8,3122.6,3.30032838]
[1720732153959,0.43711035,3122.8,3122.6,6.50272838]
[1720732156330,0.43711035,3122.8,3122.7,3.20235]
[1720732156531,0.43711035,3122.8,3122.7,3.85261784]
[1720732156749,0.43711035,3122.8,3122.7,3.95042245]
[1720732157157,0.43711035,3122.8,3122.7,7.15277245]
[1720732168467,0.43711035,3122.8,3122.7,12.73552245]
[1720732169938,0.43711035,3122.8,3122.7,15.73552245]
[1720732170380,0.43711035,3122.8,3122.7,16.68352245]
[1720732172073,0.43711035,3122.8,3122.7,20.20707245]
[1720732172291,3.5e-07,3122.8,3122.7,26.50661445]
[1720732172481,3.5e-07,3122.8,3122.7,20.75707245]
[1720732172980,2.48880035,3122.8,3122.7,0.09780461]
[1720732173182,1.10902675,3122.8,3122.7,3.30015461]
[1720732173365,1.10902675,3122.8,3122.7,3.20235]
[1720732173550,3.5e-07,3122.8,3122.7,3.20235]
[1720732173746,3.5e-07,3122.8,3122.7,4.0142111]
[1720732174580,1.10896466,3122.8,3122.7,4.0142111]
[1720732176283,3.5e-07,3122.8,3122.7,4.0142111]
[1720732176482,1.10896604,3122.8,3122.7,4.0142111]
[1720732176963,1.1089662,3122.8,3122.7,4.0142111]
[1720732177468,1.1089662,3122.8,3122.7,3.2789311]
[1720732179999,3.5e-07,3122.8,3122.7,3.2789311]
[1720732180301,1.10902748,3122.8,3122.7,3.2789311]
[1720732183372,3.5e-07,3122.8,3122.7,3.2789311]
[1720732183784,1.10900645,3122.8,3122.7,3.2789311]
[1720732186817,3.5e-07,3122.8,3122.7,3.2789311]
[1720732187123,1.10902878,3122.8,3122.7,3.2789311]
[1720732187426,1.10902106,3122.8,3122.7,3.2789311]
[1720732189221,2.450521,3122.8,3122.7,3.2789311]
[1720732189727,2.45052123,3122.8,3122.7,3.2789311]
[1720732190027,2.45052097,3122.8,3122.7,3.2789311]
[1720732190234,3.5e-07,3122.8,3122.7,3.2789311]
[1720732190399,2.45355118,3122.8,3122.7,3.2789311]
[1720732191625,1.10902098,3122.8,3122.7,3.2789311]
[1720732192994,2.45413354,3122.8,3122.7,3.2789311]
[1720732193430,1.10902098,3122.8,3122.7,3.2789311]
[1720732193794,1.10902278,3122.8,3122.7,3.2789311]
[1720732194015,2.4541447,3122.8,3122.7,3.2789311]
[1720732194215,1.10902278,3122.8,3122.7,3.2789311]
[1720732194622,2.45412997,3122.8,3122.7,3.2789311]
[1720732197310,2.4540928,3122.8,3122.7,3.2789311]
[1720732197703,3.5e-07,3122.8,3122.7,3.2789311]
[1720732197922,1.34518028,3122.8,3122.7,3.2789311]
[1720732198237,2.45415947,3122.8,3122.7,3.2789311]
[1720732200318,2.45415902,3122.8,3122.7,3.2789311]
[1720732200703,2.45417837,3122.8,3122.7,3.2789311]
[1720732203434,2.45422768,3122.8,3122.7,3.2789311]
[1720732204742,2.45422768,3122.8,3122.7,0.0765811]
[1720732205244,5.17736799,3122.8,3122.7,0.07658779]
[1720732205416,14.1846421,3122.8,3122.7,0.07658779]
[1720732205614,2.2983,3122.5,3122.0,7.48]
[1720732205839,1.68178798,3122.1,3122.0,7.48]
[1720732206036,2.79078942,3122.1,3122.0,7.48]
[1720732206239,1.10900144,3122.1,3122.0,7.48]
[1720732206542,1.10900144,3122.1,3121.9,3.20314]
[1720732206838,1.68127604,3122.2,3122.0,0.07196628]
[1720732207140,1.10929722,3122.1,3122.0,0.07196628]
[1720732207536,2.4539253,3122.1,3122.0,0.07196628]
[1720732207833,1.10929722,3122.1,3122.0,0.07196628]
[1720732208314,2.45391618,3122.1,3122.0,0.07196628]
[1720732209543,1.34461896,3122.1,3122.0,0.07196628]
[1720732209714,2.45330794,3122.1,3122.0,0.07196628]
[1720732210143,2.45330774,3122.1,3122.0,0.07196628]
[1720732210841,2.45302742,3122.1,3122.0,0.07196628]
[1720732211215,1.10932055,3122.1,3122.0,0.07196628]
[1720732213135,1.10932055,3122.1,3122.0,4.01766591]
[1720732213644,1.34370687,3122.4,3122.0,4.01766591]
[1720732213851,2.45297652,3122.3,3122.0,3.27503628]
[1720732214142,1.10926965,3122.2,3122.0,3.27503628]
[1720732214653,1.10926965,3122.3,3122.0,3.27503628]
[1720732214948,1.10926965,3122.2,3122.0,3.27503628]
[1720732215145,1.10926216,3122.1,3122.0,3.27503628]
[1720732215453,1.34370687,3122.4,3122.0,3.27503628]
[1720732215643,1.10925244,3122.3,3122.0,3.27503628]
[1720732215847,1.10925244,3122.2,3122.0,3.27503628]
[1720732216051,1.10925244,3122.3,3122.0,3.27503628]
[1720732216237,1.10925738,3122.2,3122.0,3.27503628]
[1720732216547,1.34370687,3122.4,3122.0,3.27503628]
[1720732216852,1.1092601,3122.3,3122.2,3.20286]
[1720732217150,1.34370687,3122.4,3122.2,3.20286]
[1720732217151,3.64200687,3122.5,3122.2,3.20286]
[1720732217465,2.45251227,3122.4,3122.2,3.27478823]
[1720732217682,1.34330373,3122.4,3122.2,3.27478823]
[1720732217816,1.10923869,3122.3,3122.2,3.27478823]
[1720732219424,1.10923869,3122.3,3122.2,10.47233405]
[1720732219643,3.5e-07,3122.8,3122.6,3.20245]
[1720732219644,1.34330373,3122.7,3122.6,3.20245]
[1720732219842,1.10906496,3122.7,3122.6,4.15045]
[1720732220038,3.5e-07,3122.8,3122.6,4.00940424]
[1720732220354,1.10905607,3122.7,3122.6,3.27410324]
[1720732220543,3.5e-07,3122.8,3122.6,3.27410324]
[1720732220848,1.10907459,3122.7,3122.6,3.27410324]
[1720732221954,2.45260322,3122.7,3122.6,0.07165324]
[1720732223041,2.78848538,3122.7,3122.6,0.07165324]
[1720732223246,2.78848538,3122.7,3122.3,3.20269]
[1720732223427,2.45282378,3122.6,3122.3,3.20269]
[1720732223623,1.10907459,3122.5,3122.3,3.20269]
[1720732224030,1.10915848,3122.4,3122.3,3.20269]
[1720732224930,1.10915848,3122.4,3122.1,4.15093]
[1720732225129,1.34374919,3122.5,3122.2,0.415093]
[1720732225130,1.10915848,3122.3,3122.2,0.415093]
[1720732225326,1.10915848,3122.4,3122.2,0.415093]
[1720732225530,2.45290767,3122.4,3122.2,0.415093]
[1720732225727,1.10915848,3122.3,3122.2,0.415093]
[1720732225959,1.10915848,3122.4,3122.2,3.617953]
[1720732227361,1.34374919,3122.5,3122.2,3.617953]
[1720732227562,1.10920837,3122.3,3122.2,3.617953]
[1720732227731,1.10920837,3122.3,3122.2,3.20286]
[1720732228050,1.10919831,3122.3,3122.2,3.20286]
[1720732228967,1.10919831,3122.3,3122.2,5.70136]
[1720732229162,1.67981283,3122.6,3122.3,3.20273]
[1720732229163,1.34374919,3122.6,3122.3,3.20273]
[1720732229375,1.34374919,3122.6,3122.4,4.720783]
[1720732229376,1.1091331,3122.5,3122.4,4.720783]
[1720732230139,1.34374919,3122.6,3122.5,3.20256]
[1720732230431,2.45296275,3122.6,3122.5,3.20256]
[1720732230845,1.10910272,3122.6,3122.5,3.20256]
[1720732231298,1.10910272,3122.6,3122.5,6.40512]
[1720732231604,3.5e-07,3122.8,3122.7,3.20235]
[1720732231745,1.10897506,3122.8,3122.7,3.20235]
[1720732232443,3.5e-07,3122.8,3122.7,3.20235]
[1720732232649,2.2786,3125.7,3124.2,6.40162]
[1720732232935,2.2786,3125.7,3122.9,3.20213]
[1720732232936,2.01454519,3125.6,3124.3,2.3605]
[1720732233282,2.77629509,3126.2,3126.1,14.29548]
[1720732233374,2.01360721,3126.9,3126.8,9.59445]
[1720732233565,2.01360721,3126.9,3126.8,7.3443]
[1720732233778,2.01360721,3126.9,3126.8,9.3963]
[1720732233956,2.01360721,3126.9,3126.8,6.19815]
[1720732234157,2.01360721,3126.9,3126.8,10.3443]
[1720732234758,2.01360721,3126.9,3126.8,13.54245]
[1720732235277,1.67758038,3127.2,3127.1,9.59355]
[1720732235467,1.67758038,3127.2,3127.1,10.54155]
[1720732235674,1.67741155,3128.4,3128.0,3.19689]
[1720732235874,1.67741155,3128.4,3128.3,0.948]
[1720732236401,1.67741155,3128.4,3127.4,3.19748]
[1720732236600,1.84515271,3128.4,3126.7,2.266]
[1720732236760,1.84515271,3128.4,3127.5,0.09849442]
[1720732237089,1.84515271,3128.4,3127.4,3.19747]
[1720732237271,1.84515271,3128.4,3127.5,0.09849442]
[1720732237586,3.19683,3128.1,3127.5,0.09849442]
[1720732237891,3.19683,3128.1,3127.0,3.19791]
[1720732238177,3.55,3128.0,3127.6,0.09530479]
[1720732238387,3.55,3128.0,3127.1,3.19783]
[1720732238680,3.55,3128.0,3126.3,5.46459]
[1720732238681,3.55,3128.0,3127.2,0.09558338]
[1720732238892,3.55,3128.0,3126.6,7.48]
[1720732238893,2.4851,3127.8,3126.8,3.19807]
[1720732239075,2.4851,3127.8,3127.3,0.09551373]
[1720732239393,5.4851,3127.8,3126.9,3.19805]
[1720732239596,0.55,3127.7,3126.8,3.19815]
[1720732239761,3.55,3127.7,3127.0,0.0957227]
[1720732240101,3.55,3127.7,3126.9,3.29383237]
[1720732240102,1.223225,3127.6,3126.9,3.29383237]
[1720732240255,1.223225,3127.6,3127.1,0.09565304]
[1720732240581,0.55,3127.5,3126.6,7.48]
[1720732240783,3.74748,3127.5,3127.2,0.09558338]
[1720732240951,3.0,3127.4,3126.6,7.48]
[1720732241158,0.674748,3127.3,3126.6,7.48]
[1720732242447,0.674748,3127.3,3126.5,3.19845]
[1720732243846,3.872398,3127.3,3126.5,3.19845]
[1720732244049,3.0,3127.2,3126.5,3.19845]
[1720732244555,6.19778,3127.2,3126.0,10.67888]
[1720732244847,2.2873,3127.0,3125.5,3.19945]
[1720732245052,3.19847,3126.5,3125.5,3.19945]
[1720732245596,3.0,3126.4,3125.4,3.19957]
[1720732245779,0.619847,3126.3,3125.4,3.19957]
[1720732246889,0.619847,3126.3,3125.3,7.48]
[1720732247103,3.19885,3126.2,3125.3,7.48]
[1720732247398,5.45137,3126.1,3125.3,7.48]
[1720732247615,0.545137,3126.0,3125.3,7.48]
[1720732248065,3.19918,3125.8,3125.3,7.48]
[1720732248382,3.19918,3125.8,3124.8,12.29]
[1720732248383,3.0,3125.7,3124.8,3.20019]
[1720732250073,3.0,3125.7,3124.9,3.20008]
[1720732250274,0.619918,3125.6,3124.9,3.20008]
[1720732250481,3.0,3125.7,3124.8,3.20019]
[1720732250892,3.19939,3125.6,3124.7,7.48]
[1720732251660,3.19939,3125.6,3124.8,0.08290722]
[1720732252057,5.58861,3125.5,3124.8,0.08290722]
[1720732252264,0.8788,3125.4,3124.8,0.08290722]
[1720732253589,5.27938655,3125.5,3124.8,0.08290722]
[1720732256998,2.3891,3125.5,3124.8,3.28302722]
[1720732257500,2.3891,3125.5,3124.8,0.08290722]
[1720732257799,0.23891,3125.4,3124.8,0.08290722]
[1720732260292,2.3891,3125.5,3124.8,0.08290722]
[1720732260598,2.3891,3125.5,3124.8,3.28309722]
[1720732260802,2.3891,3125.5,3124.8,3.00809722]
[1720732260991,2.3891,3125.5,3124.9,0.08055227]
[1720732261389,6.19936,3125.7,3124.9,0.08055227]
[1720732261390,3.0,3125.7,3125.2,3.19978]
[1720732261569,2.4483,3126.6,3125.7,3.19927]
[1720732261774,5.64672,3126.6,3125.7,3.19927]
[1720732261968,5.64672,3126.6,3125.8,0.07992462]
[1720732262174,0.564672,3126.5,3125.8,3.27909462]
[1720732262401,0.564672,3126.5,3125.8,0.07992462]
[1720732262581,0.564672,3126.5,3125.8,3.27908462]
[1720732264200,2.4483,3126.6,3125.8,3.27908462]
[1720732264902,2.4483,3126.6,3125.9,3.19899]
[1720732265222,5.4483,3126.6,3126.0,0.07966427]
[1720732265499,3.0,3126.7,3126.0,0.07966427]
[1720732266704,3.19768,3127.3,3126.2,3.19875]
[1720732267002,3.19801,3127.0,3126.3,0.07945516]
[1720732267202,3.1981,3126.9,3126.3,0.07945516]
[1720732267378,3.1981,3126.9,3126.0,3.19889]
[1720732267577,0.639611,3126.8,3126.4,0.07938547]
[1720732267815,0.639611,3126.8,3126.0,3.19889]
[1720732268109,0.639611,3126.8,3126.1,3.19886]
[1720732268309,0.639611,3126.8,3126.2,0.07934669]
[1720732268606,3.19836,3126.6,3126.2,0.07934669]
[1720732268903,3.19836,3126.6,3125.6,7.48]
[1720732268904,0.43062719,3126.5,3125.6,7.48]
[1720732269104,3.62916719,3126.5,3125.7,0.07964944]